lending/lending_fUSD_20240124
["ID","MTS","AMOUNT","RATE_DAILY","PERIOD"]
[312639524,1706122341950,-500.0,0.00050684,31]
[312639525,1706122341961,-532.8,0.00050684,31]
[312639526,1706122341972,-500.0,0.00050684,31]
[312639527,1706122341984,-500.0,0.00050684,31]
[312639528,1706122341994,-500.0,0.00050684,31]
[312639529,1706122342006,-500.0,0.00050684,31]
[312639530,1706122342016,-500.0,0.00050684,31]
[312639531,1706122342027,-500.0,0.00050684,31]
[312639532,1706122342038,-500.0,0.00050684,31]
[312639533,1706122342049,-944.33,0.00050684,31]
[312639534,1706122342060,-510.31,0.00050684,31]
[312639535,1706122342071,-500.0,0.00050684,31]
[312639536,1706122342081,-500.0,0.00050684,31]
[312639537,1706122342092,-500.0,0.00050684,31]
[312639538,1706122342102,-500.0,0.00050684,31]
[312639539,1706122342113,-500.0,0.00050684,31]
[312639540,1706122342124,-500.0,0.00050684,31]
[312639541,1706122342136,-715.29,0.00050684,31]
[312639542,1706122342146,-500.0,0.00050684,31]
[312639543,1706122342157,-500.0,0.00050684,31]
[312639544,1706122342168,-1227.94,0.00050684,31]
[312639545,1706122342179,-572.94,0.00050684,31]
[312639546,1706122342191,-518.75,0.00050684,31]
[312639547,1706122342208,-500.0,0.00050684,31]
[312639548,1706122342218,-531.96915815,0.00050684,31]
[312639549,1706122342229,-500.0,0.00050684,31]
[312639550,1706122342240,-666.04,0.00050684,31]
[312639551,1706122342250,-533.98510866,0.00050684,31]
[312639552,1706122342261,-500.0,0.00050684,31]
[312639553,1706122342272,-167.8650235,0.00050684,31]
[312639554,1706122342284,-626.84,0.00050684,31]
[312639555,1706122342295,-500.0,0.00050684,31]
[312639556,1706122342863,-557.55,0.00050684,31]
[312639557,1706122342885,-500.0,0.00050684,31]
[312639558,1706122342895,-500.0,0.00050684,31]
[312639559,1706122342904,-500.0,0.00050684,31]
[312639560,1706122342913,-521.21,0.00050684,31]
[312639561,1706122342922,-500.0,0.00050684,31]
[312639562,1706122342931,-500.0,0.00050684,31]
[312639563,1706122342941,-500.0,0.00050684,31]
[312639564,1706122342949,-516.00249881,0.00050684,31]
[312639565,1706122342958,-500.0,0.00050684,31]
[312639566,1706122342968,-500.0,0.00050684,31]
[312639567,1706122342978,-552.72028435,0.00050684,31]
[312639568,1706122342987,-522.02,0.00050684,31]
[312639569,1706122342996,-557.31,0.00050684,31]
[312639570,1706122343006,-500.0,0.00050684,31]
[312639571,1706122343016,-500.0,0.00050684,31]
[312639572,1706122343025,-500.0,0.00050684,31]
[312639573,1706122343035,-207.24609548,0.00050684,31]
[312639574,1706122343044,-500.0,0.00050684,31]
[312639575,1706122343054,-500.0,0.00050684,31]
[312639576,1706122343063,-500.0,0.00050684,31]
[312639577,1706122343074,-500.0,0.00050684,31]
[312639578,1706122343085,-180.12389488,0.00050684,31]
[312639579,1706122343096,-556.45119055,0.00050684,31]
[312639580,1706122343106,-307.41430092,0.00050684,31]
[312639581,1706122343116,-500.0,0.00050684,31]
[312639582,1706122343125,-500.0,0.00050684,31]
[312639583,1706122343135,-500.0,0.00050684,31]
[312639584,1706122343144,-500.0,0.00050684,20]
[312639585,1706122343153,-463.34401006,0.00050684,31]
[312639586,1706122343162,-500.0,0.00050684,31]
[312639587,1706122343171,-666.6,0.00050684,31]
[312639588,1706122343181,-504.07,0.00050684,31]
[312639589,1706122343190,-500.0,0.00050684,31]
[312639590,1706122343200,-500.0,0.00050684,31]
[312639591,1706122343209,-1870.62,0.00050684,2]
[312639592,1706122343218,-500.0,0.00050684,31]
[312639593,1706122343227,-500.0,0.00050684,10]
[312639594,1706122343237,-610.32,0.00050684,31]
[312639595,1706122343246,-636.71,0.00050684,31]
[312639596,1706122343256,-516.63,0.00050684,31]
[312639597,1706122343265,-588.07,0.00050684,31]
[312639598,1706122343274,-500.54849299,0.00050684,31]
[312639599,1706122343284,-565.0,0.00050684,31]
[312639600,1706122343293,-500.0,0.00050684,31]
[312639601,1706122343306,-661.88,0.00050684,31]
[312639602,1706122343315,-670.77,0.00050684,31]
[312639603,1706122343325,-500.0,0.00050684,31]
[312639604,1706122343334,-500.0,0.00050684,31]
[312639605,1706122343344,-500.0,0.00050684,31]
[312639606,1706122343353,-500.0,0.00050684,31]
[312639607,1706122343363,-557.58959964,0.00050684,31]
[312639608,1706122343373,-500.0,0.00050684,31]
[312639609,1706122343382,-500.0,0.00050684,31]
[312639610,1706122343392,-500.0,0.00050684,31]
[312639611,1706122343401,-500.0,0.00050684,31]
[312639612,1706122343411,-500.0,0.00050684,31]
[312639613,1706122343421,-588.69,0.00050684,31]
[312639614,1706122343430,-500.0,0.00050684,31]
[312639615,1706122343440,-500.0,0.00050684,31]
[312639616,1706122343450,-500.0,0.00050684,31]
[312639617,1706122343459,-500.0,0.00050684,31]
[312639618,1706122343469,-500.0,0.00050684,31]
[312639619,1706122343479,-500.0,0.00050684,31]
[312639620,1706122343489,-500.0,0.00050684,31]
[312639621,1706122343498,-500.0,0.00050684,31]
[312639622,1706122343508,-505.02,0.00050684,31]
[312639623,1706122343517,-500.0,0.00050684,31]
[312639624,1706122343526,-500.0,0.00050684,31]
[312639625,1706122343536,-500.0,0.00050684,31]
[312639626,1706122343546,-500.0,0.00050684,31]
[312639627,1706122343555,-500.0,0.00050684,31]
[312639628,1706122343564,-500.0,0.00050684,31]
[312639629,1706122343574,-500.0,0.00050684,31]
[312639630,1706122343584,-500.0,0.00050684,31]
[312639631,1706122343593,-598.88,0.00050684,31]
[312639632,1706122343603,-500.0,0.00050684,31]
[312639633,1706122343613,-610.34,0.00050684,31]
[312639634,1706122343622,-500.0,0.00050684,31]
[312639635,1706122343631,-500.0,0.00050684,31]
[312639636,1706122343641,-500.0,0.00050684,31]
[312639637,1706122343650,-500.0,0.00050684,31]
[312639638,1706122343660,-500.0,0.00050684,31]
[312639639,1706122343670,-500.0,0.00050684,31]
[312639640,1706122343680,-500.0,0.00050684,31]
[312639641,1706122343690,-500.0,0.00050684,31]
[312639642,1706122343699,-287.40574599,0.00050684,31]
[312639643,1706122343709,-1000.0,0.00050684,2]
[312639644,1706122343718,-500.0,0.00050684,31]
[312639645,1706122343728,-500.0,0.00050684,31]
[312639646,1706122343738,-500.0,0.00050684,31]
[312639647,1706122343748,-840.37,0.00050684,31]
[312639648,1706122343757,-608.71986233,0.00050684,10]
[312639649,1706122343767,-500.0,0.00050684,31]
[312639650,1706122343777,-301.92716021,0.00050684,31]
[312639651,1706122343787,-576.14,0.00050684,31]
[312639652,1706122343796,-500.0,0.00050684,31]
[312639653,1706122343805,-500.0,0.00050684,31]
[312639654,1706122343815,-500.0,0.00050684,31]
[312639655,1706122343825,-505.36304141,0.00050684,31]
[312639656,1706122343834,-614.84,0.00050684,31]
[312639657,1706122343845,-500.0,0.00050684,31]
[312639658,1706122343855,-500.0,0.00050684,31]
[312639659,1706122343865,-500.0,0.00050684,31]
[312639660,1706122343874,-500.0,0.00050684,31]
[312639661,1706122343884,-500.0,0.00050684,31]
[312639662,1706122343894,-699.16,0.00050684,31]
[312639663,1706122343904,-500.0,0.00050684,31]
[312639664,1706122343913,-602.98,0.00050684,31]
[312639665,1706122343923,-500.0,0.00050684,31]
[312639666,1706122343933,-1209.78,0.00050684,31]
[312639667,1706122343942,-500.0,0.00050684,31]
[312639668,1706122343952,-500.0,0.00050684,31]
[312639669,1706122343962,-500.0,0.00050684,31]
[312639670,1706122343971,-526.93,0.00050684,31]
[312639671,1706122343981,-669.92,0.00050684,31]
[312639672,1706122343991,-500.0,0.00050684,31]
[312639673,1706122344001,-207.26730995,0.00050684,31]
[312639674,1706122344010,-500.0,0.00050684,31]
[312639675,1706122344020,-681.96,0.00050684,31]
[312639676,1706122344030,-500.0,0.00050684,31]
[312639677,1706122344039,-1093.09,0.00050684,31]
[312639678,1706122344050,-505.89,0.00050684,31]
[312639679,1706122344059,-504.26,0.00050684,31]
[312639680,1706122344069,-576.3,0.00050684,31]
[312639681,1706122344078,-683.41,0.00050684,31]
[312639682,1706122344087,-500.0,0.00050684,31]
[312639683,1706122344098,-861.51,0.00050684,31]
[312639684,1706122344107,-531.92,0.00050684,31]
[312639685,1706122344117,-500.0,0.00050684,31]
[312639686,1706122344127,-1129.85,0.00050684,2]
[312639687,1706122344136,-500.0,0.00050684,31]
[312639688,1706122344146,-439.54863875,0.00050684,31]
[312639689,1706122344155,-500.0,0.00050684,31]
[312639690,1706122344165,-523.21,0.00050684,31]
[312639691,1706122344174,-554.22,0.00050684,31]
[312639692,1706122344184,-500.0,0.00050684,31]
[312639693,1706122344194,-501.22,0.00050684,31]
[312639694,1706122344203,-538.61,0.00050684,31]
[312639695,1706122344214,-500.0,0.00050684,31]
[312639696,1706122344223,-748.72,0.00050684,31]
[312639697,1706122344233,-598.83,0.00050684,31]
[312639698,1706122344243,-909.89,0.00050684,14]
[312639699,1706122344252,-500.0,0.00050684,31]
[312639700,1706122344262,-500.0,0.00050684,31]
[312639701,1706122344272,-960.56,0.00050684,31]
[312639702,1706122344282,-830.24,0.00050684,31]
[312639703,1706122344293,-500.0,0.00050684,31]
[312639704,1706122344306,-895.7,0.00050684,31]
[312639705,1706122344316,-545.66,0.00050684,31]
[312639706,1706122344326,-500.0,0.00050684,31]
[312639707,1706122344335,-1002.31,0.00050684,31]
[312639708,1706122344347,-500.0,0.00050684,31]
[312639709,1706122344357,-1055.98,0.00050684,31]
[312639710,1706122344367,-500.0,0.00050684,31]
[312639711,1706122344378,-675.47,0.00050684,31]
[312639712,1706122344388,-1008.99,0.00050684,31]
[312639713,1706122344397,-500.0,0.00050684,31]
[312639714,1706122344407,-500.0,0.00050684,31]
[312639715,1706122344416,-697.41,0.00050684,31]
[312639716,1706122344425,-506.83,0.00050684,31]
[312639717,1706122344434,-737.45,0.00050684,31]
[312639718,1706122344445,-542.15582117,0.00050684,31]
[312639719,1706122344455,-733.37,0.00050684,31]
[312639720,1706122344464,-500.0,0.00050684,31]
[312639721,1706122344473,-909.31,0.00050684,31]
[312639722,1706122344483,-500.0,0.00050684,31]
[312639723,1706122344492,-703.21,0.00050684,31]
[312639724,1706122344501,-874.13,0.00050684,31]
[312639725,1706122344511,-500.0,0.00050684,31]
[312639726,1706122344520,-500.0,0.00050684,31]
[312639727,1706122344530,-968.85,0.00050684,31]
[312639728,1706122344540,-733.08,0.00050684,31]
[312639729,1706122344550,-1263.86,0.00050684,31]
[312639730,1706122344560,-500.0,0.00050684,31]
[312639731,1706122344569,-500.0,0.00050684,31]
[312639732,1706122344579,-570.38,0.00050684,31]
[312639733,1706122344589,-519.88898457,0.00050684,31]
[312639734,1706122344600,-517.04775679,0.00050684,14]
[312639735,1706122344610,-500.0,0.00050684,31]
[312639736,1706122344619,-520.66936814,0.00050684,31]
[312639737,1706122344630,-506.74,0.00050684,31]
[312639738,1706122344640,-873.0,0.00050684,31]
[312639739,1706122344650,-500.0,0.00050684,31]
[312639740,1706122344661,-500.0,0.00050684,31]
[312639741,1706122344671,-500.0,0.00050684,31]
[312639742,1706122344681,-500.0,0.00050684,10]
[312639743,1706122344691,-1425.52,0.00050684,31]
[312639744,1706122344700,-500.0,0.00050684,31]
[312639745,1706122344710,-500.0,0.00050684,31]
[312639746,1706122344720,-500.0,0.00050684,31]
[312639747,1706122344730,-1000.0,0.00050684,7]
[312639748,1706122344739,-831.23,0.00050684,31]
[312639749,1706122344749,-642.97,0.00050684,31]
[312639750,1706122344759,-2093.79,0.00050684,31]
[312639751,1706122344769,-500.0,0.00050684,31]
[312639752,1706122344779,-500.0,0.00050684,31]
[312639753,1706122344789,-500.0,0.00050684,31]
[312639754,1706122344798,-811.0,0.00050684,31]
[312639755,1706122344808,-221.32837754,0.00050684,31]
[312639756,1706122344817,-500.0,0.00050684,31]
[312639757,1706122344828,-500.0,0.00050684,7]
[312639758,1706122344838,-220.44861559,0.00050684,31]
[312639759,1706122344849,-545.73,0.00050684,31]
[312639760,1706122344859,-612.69,0.00050684,31]
[312639761,1706122344868,-574.43,0.00050684,31]
[312639762,1706122344877,-539.90598307,0.00050684,31]
[312639763,1706122344887,-500.0,0.00050684,31]
[312639764,1706122344896,-514.67,0.00050684,31]
[312639765,1706122344906,-500.0,0.00050684,31]
[312639766,1706122344916,-712.58,0.00050684,31]
[312639767,1706122344925,-622.52,0.00050684,31]
[312639768,1706122344934,-955.43,0.00050684,31]
[312639769,1706122344944,-500.0,0.00050684,31]
[312639770,1706122344954,-500.0,0.00050684,31]
[312639771,1706122344964,-500.0,0.00050684,31]
[312639772,1706122344973,-745.16,0.00050684,31]
[312639773,1706122344982,-726.38,0.00050684,31]
[312639774,1706122344992,-798.08,0.00050684,31]
[312639775,1706122345001,-500.0,0.00050684,31]
[312639776,1706122345011,-549.40376688,0.00050684,31]
[312639777,1706122345020,-626.62,0.00050684,31]
[312639778,1706122345030,-865.11,0.00050684,31]
[312639779,1706122345039,-174.63999999,0.00050684,31]
[312639780,1706122345049,-500.0,0.00050684,31]
[312639781,1706122345059,-500.0,0.00050684,31]
[312639782,1706122345069,-705.93,0.00050684,31]
[312639783,1706122345078,-1862.33,0.00050684,31]
[312639784,1706122345087,-500.0,0.00050684,31]
[312639785,1706122345097,-500.0,0.00050684,31]
[312639786,1706122345107,-500.0,0.00050684,31]
[312639787,1706122345117,-510.67,0.00050684,31]
[312639788,1706122345126,-668.54,0.00050684,31]
[312639789,1706122345136,-500.0,0.00050684,31]
[312639790,1706122345146,-856.57,0.00050684,31]
[312639791,1706122345155,-500.0,0.00050684,31]
[312639792,1706122345165,-500.0,0.00050684,31]
[312639793,1706122345174,-500.0,0.00050684,31]
[312639794,1706122345184,-662.93,0.00050684,31]
[312639795,1706122345194,-500.0,0.00050684,31]
[312639796,1706122345203,-500.0,0.00050684,31]
[312639797,1706122345212,-664.98,0.00050684,31]
[312639798,1706122345222,-500.0,0.00050684,31]
[312639799,1706122345231,-553.0,0.00050684,31]
[312639800,1706122345240,-601.77,0.00050684,31]
[312639801,1706122345250,-500.0,0.00050684,31]
[312639802,1706122345259,-526.72,0.00050684,31]
[312639803,1706122345269,-614.5,0.00050684,31]
[312639804,1706122345278,-500.0,0.00050684,31]
[312639805,1706122345288,-500.0,0.00050684,31]
[312639806,1706122345298,-500.0,0.00050684,31]
[312639807,1706122345308,-620.25,0.00050684,31]
[312639808,1706122345317,-500.0,0.00050684,31]
[312639809,1706122345326,-812.44,0.00050684,31]
[312639810,1706122345335,-500.0,0.00050684,31]
[312639811,1706122345346,-500.0,0.00050684,31]
[312639812,1706122345355,-500.0,0.00050684,31]
[312639813,1706122345364,-794.73,0.00050684,31]
[312639814,1706122345374,-500.0,0.00050684,31]
[312639815,1706122345384,-645.52,0.00050684,31]
[312639816,1706122345394,-500.0,0.00050684,31]
[312639817,1706122345403,-705.9,0.00050684,31]
[312639818,1706122345413,-666.76,0.00050684,31]
[312639819,1706122345423,-1412.9,0.00050684,31]
[312639820,1706122345432,-764.01,0.00050684,31]
[312639821,1706122345442,-650.22,0.00050684,31]
[312639822,1706122345672,-500.0,0.00050684,31]
[312639823,1706122345688,-500.0,0.00050684,31]
[312639824,1706122345698,-743.33,0.00050684,31]
[312639825,1706122345708,-632.51,0.00050684,31]
[312639826,1706122345718,-556.87673486,0.00050684,31]
[312639827,1706122345729,-500.0,0.00050684,31]
[312639828,1706122345740,-1250.48,0.00050684,31]
[312639829,1706122345750,-500.0,0.00050684,31]
[312639830,1706122345760,-650.49,0.00050684,31]
[312639831,1706122345770,-733.9,0.00050684,31]
[312639832,1706122345780,-500.0,0.00050684,31]
[312639833,1706122345790,-500.0,0.00050684,31]
[312639834,1706122345800,-669.48,0.00050684,31]
[312639835,1706122345810,-500.0,0.00050684,31]
[312639836,1706122345821,-500.0,0.00050684,31]
[312639837,1706122345832,-500.0,0.00050684,31]
[312639838,1706122345843,-518.79835542,0.00050684,31]
[312639839,1706122345855,-630.98363702,0.00050684,31]
[312639840,1706122345865,-1269.11,0.00050684,2]
[312639841,1706122345876,-744.02,0.00050684,31]
[312639842,1706122345887,-664.9,0.00050684,31]
[312639843,1706122345896,-500.0,0.00050684,31]
[312639844,1706122345906,-533.98,0.00050684,31]
[312639845,1706122345916,-807.92,0.00050684,31]
[312639846,1706122345926,-500.0,0.00050684,31]
[312639847,1706122345937,-500.0,0.00050684,31]
[312639848,1706122345947,-553.89,0.00050684,31]
[312639849,1706122345956,-500.0,0.00050684,31]
[312639850,1706122345967,-678.22,0.00050684,31]
[312639851,1706122345977,-868.79,0.00050684,31]
[312639852,1706122345996,-500.0,0.00050684,31]
[312639853,1706122346006,-403.97664322,0.00050684,31]
[312639854,1706122346016,-980.31,0.00050684,31]
[312639855,1706122346025,-531.27002731,0.00050684,31]
[312639856,1706122346035,-540.29,0.00050684,31]
[312639857,1706122346044,-606.53,0.00050684,31]
[312639858,1706122346054,-500.0,0.00050684,31]
[312639859,1706122346065,-500.0,0.00050684,31]
[312639860,1706122346074,-590.42,0.00050684,31]
[312639861,1706122346084,-500.0,0.00050684,31]
[312639862,1706122346095,-1598.07,0.00050684,31]
[312639863,1706122346105,-526.85,0.00050684,31]
[312639864,1706122346115,-500.0,0.00050684,31]
[312639865,1706122346124,-1012.55,0.00050684,31]
[312639866,1706122346134,-822.56,0.00050684,31]
[312639867,1706122346143,-500.0,0.00050684,31]
[312639868,1706122346153,-2206.82,0.00050684,7]
[312639869,1706122346164,-500.0,0.00050684,31]
[312639870,1706122346173,-650.91,0.00050684,31]
[312639871,1706122346183,-1000.0,0.00050684,7]
[312639872,1706122346193,-500.0,0.00050684,31]
[312639873,1706122346202,-731.16,0.00050684,31]
[312639874,1706122346211,-500.0,0.00050684,31]
[312639875,1706122346221,-500.0,0.00050684,31]
[312639876,1706122346231,-500.0,0.00050684,31]
[312639877,1706122346240,-552.33,0.00050684,31]
[312639878,1706122346249,-508.81,0.00050684,31]
[312639879,1706122346259,-500.0,0.00050684,31]
[312639880,1706122346268,-813.7,0.00050684,31]
[312639881,1706122346277,-500.0,0.00050684,31]
[312639882,1706122346287,-500.0,0.00050684,31]
[312639883,1706122346296,-733.58,0.00050684,31]
[312639884,1706122346310,-500.0,0.00050684,31]
[312639885,1706122346320,-509.4,0.00050684,31]
[312639886,1706122346330,-500.0,0.00050684,31]
[312639887,1706122346340,-656.53,0.00050684,31]
[312639888,1706122346351,-500.0,0.00050684,31]
[312639889,1706122346361,-748.28,0.00050684,31]
[312639890,1706122346370,-500.0,0.00050684,31]
[312639891,1706122346381,-500.0,0.00050684,31]
[312639892,1706122346390,-737.23,0.00050684,31]
[312639893,1706122346400,-500.0,0.00050684,31]
[312639894,1706122346409,-500.0,0.00050684,31]
[312639895,1706122346419,-651.3,0.00050684,31]
[312639896,1706122346428,-500.0,0.00050684,31]
[312639897,1706122346438,-1130.82,0.00050684,7]
[312639898,1706122346447,-743.9,0.00050684,31]
[312639899,1706122346457,-695.86,0.00050684,31]
[312639900,1706122346466,-500.0,0.00050684,31]
[312639901,1706122346476,-524.48,0.00050684,31]
[312639902,1706122346485,-577.08935572,0.00050684,31]
[312639903,1706122346495,-500.0,0.00050684,31]
[312639904,1706122346504,-577.96,0.00050684,31]
[312639905,1706122346514,-500.0,0.00050684,31]
[312639906,1706122346523,-500.0,0.00050684,31]
[312639907,1706122346532,-500.0,0.00050684,31]
[312639908,1706122346541,-822.67,0.00050684,31]
[312639909,1706122346551,-500.0,0.00050684,31]
[312639910,1706122346560,-500.0,0.00050684,31]
[312639911,1706122346570,-500.0,0.00050684,31]
[312639912,1706122346580,-500.0,0.00050684,31]
[312639913,1706122346589,-438.03656403,0.00050684,31]
[312639914,1706122346599,-539.38,0.00050684,31]
[312639915,1706122346608,-754.54,0.00050684,31]
[312639916,1706122346618,-748.39,0.00050684,31]
[312639917,1706122346627,-759.37,0.00050684,31]
[312639918,1706122346637,-596.17,0.00050684,31]
[312639919,1706122346646,-590.14,0.00050684,31]
[312639920,1706122346656,-500.0,0.00050684,31]
[312639921,1706122346666,-500.0,0.00050684,31]
[312639922,1706122346675,-574.37,0.00050684,31]
[312639923,1706122346685,-836.66,0.00050684,31]
[312639924,1706122346695,-834.27,0.00050684,31]
[312639925,1706122346705,-1000.0,0.00050684,30]
[312639926,1706122346715,-500.0,0.00050684,31]
[312639927,1706122346725,-513.36039114,0.00050684,31]
[312639928,1706122346734,-500.0,0.00050684,31]
[312639929,1706122346745,-500.0,0.00050684,31]
[312639930,1706122346754,-500.0,0.00050684,31]
[312639931,1706122346764,-542.4520893,0.00050684,31]
[312639932,1706122346773,-561.15,0.00050684,31]
[312639933,1706122346783,-571.13,0.00050684,31]
[312639934,1706122346793,-500.0,0.00050684,31]
[312639935,1706122346802,-722.96,0.00050684,31]
[312639936,1706122346811,-2163.99,0.00050684,31]
[312639937,1706122346821,-574.84,0.00050684,31]
[312639938,1706122346831,-500.0,0.00050684,31]
[312639939,1706122346841,-500.0,0.00050684,31]
[312639940,1706122346852,-500.0,0.00050684,31]
[312639941,1706122346862,-500.0,0.00050684,31]
[312639942,1706122346872,-624.88,0.00050684,31]
[312639943,1706122346882,-500.0,0.00050684,31]
[312639944,1706122346892,-1020.09,0.00050684,31]
[312639945,1706122346901,-683.14,0.00050684,31]
[312639946,1706122346911,-500.0,0.00050684,31]
[312639947,1706122346920,-1074.38,0.00050684,31]
[312639948,1706122346930,-500.0,0.00050684,31]
[312639949,1706122346940,-500.0,0.00050684,31]
[312639950,1706122346949,-500.0,0.00050684,31]
[312639951,1706122346958,-774.89,0.00050684,31]
[312639952,1706122346968,-500.0,0.00050684,31]
[312639953,1706122346978,-598.13,0.00050684,31]
[312639954,1706122346987,-491.82511357,0.00050684,31]
[312639955,1706122346997,-822.96,0.00050684,31]
[312639956,1706122347006,-590.69,0.00050684,31]
[312639957,1706122347015,-739.58,0.00050684,31]
[312639958,1706122347025,-1001.25,0.00050684,31]
[312639959,1706122347035,-500.0,0.00050684,31]
[312639960,1706122347046,-557.33,0.00050684,31]
[312639961,1706122347055,-500.0,0.00050684,31]
[312639962,1706122347065,-500.0,0.00050684,31]
[312639963,1706122347075,-535.27,0.00050684,31]
[312639964,1706122347085,-1123.3,0.00050684,31]
[312639965,1706122347095,-500.0,0.00050684,31]
[312639966,1706122347105,-559.97,0.00050684,31]
[312639967,1706122347114,-500.0,0.00050684,31]
[312639968,1706122347123,-545.51,0.00050684,31]
[312639969,1706122347133,-703.65,0.00050684,31]
[312639970,1706122347142,-500.0,0.00050684,31]
[312639971,1706122347152,-500.0,0.00050684,31]
[312639972,1706122347161,-507.77,0.00050684,31]
[312639973,1706122347170,-500.0,0.00050684,31]
[312639974,1706122347180,-500.0,0.00050684,31]
[312639975,1706122347189,-239.68510456,0.00050684,31]
[312639976,1706122347199,-500.0,0.00050684,31]
[312639977,1706122347209,-425.01229042,0.00050684,31]
[312639978,1706122347220,-500.0,0.00050684,31]
[312639979,1706122347230,-540.51,0.00050684,31]
[312639980,1706122347240,-744.37,0.00050684,31]
[312639981,1706122347250,-500.0,0.00050684,31]
[312639982,1706122347259,-638.61,0.00050684,31]
[312639983,1706122347270,-500.0,0.00050684,31]
[312639984,1706122347279,-664.27,0.00050684,31]
[312639985,1706122347293,-623.83,0.00050684,31]
[312639986,1706122347303,-1168.99,0.00050684,31]
[312639987,1706122347312,-500.0,0.00050684,31]
[312639988,1706122347321,-271.12553492,0.00050684,31]
[312639989,1706122347331,-1288.27,0.00050684,31]
[312639990,1706122347340,-500.0,0.00050684,31]
[312639991,1706122347350,-500.0,0.00050684,31]
[312639992,1706122347359,-500.0,0.00050684,31]
[312639993,1706122347372,-1216.74,0.00050684,31]
[312639994,1706122347381,-368.52297537,0.00050684,31]
[312639995,1706122347391,-789.81,0.00050684,31]
[312639996,1706122347400,-500.0,0.00050684,31]
[312639997,1706122347409,-1358.17,0.00050684,31]
[312639998,1706122347419,-500.0,0.00050684,31]
[312639999,1706122347428,-500.0,0.00050684,31]
[312640000,1706122347437,-500.0,0.00050684,31]
[312640001,1706122347446,-500.0,0.00050684,31]
[312640002,1706122347455,-500.0,0.00050684,31]
[312640003,1706122347465,-500.0,0.00050684,31]
[312640004,1706122347474,-500.0,0.00050684,31]
[312640005,1706122347484,-500.0,0.00050684,31]
[312640006,1706122347493,-835.3,0.00050684,31]
[312640007,1706122347502,-500.0,0.00050684,31]
[312640008,1706122347511,-5442.29,0.00050684,31]
[312640009,1706122347521,-500.0,0.00050684,31]
[312640010,1706122347530,-500.0,0.00050684,31]
[312640011,1706122347539,-500.0,0.00050684,31]
[312640012,1706122347549,-609.87,0.00050684,31]
[312640013,1706122347600,-500.0,0.00050684,31]
[312640014,1706122347609,-1213.12,0.00050684,31]
[312640015,1706122347618,-500.0,0.00050684,31]
[312640016,1706122347627,-500.0,0.00050684,31]
[312640017,1706122347636,-500.0,0.00050684,31]
[312640018,1706122347646,-500.0,0.00050684,31]
[312640019,1706122347655,-766.55,0.00050684,31]
[312640020,1706122347664,-950.1,0.00050684,31]
[312640021,1706122347673,-891.54,0.00050684,31]
[312640022,1706122347682,-789.01,0.00050684,31]
[312640023,1706122347692,-571.48,0.00050684,31]